bitfinex/quotes_ETHUSD_20251021
["timestamp","ask_amount","ask_price","bid_price","bid_amount"]
[1761055936256,0.4531,3928.7,3926.3,0.53234927]
[1761055936571,0.2327,3928.4,3926.5,2.54678816]
[1761055936741,0.2327,3928.4,3926.6,0.02546732]
[1761055936941,0.6858,3928.4,3926.6,2.57218383]
[1761055937138,0.2327,3928.9,3926.7,0.4729]
[1761055937338,0.2327,3928.9,3926.8,0.02546602]
[1761055937650,0.4531,3928.8,3926.9,0.2226366]
[1761055937853,0.4531,3928.8,3927.0,0.02546473]
[1761055938362,0.4531,3928.8,3927.1,0.1583]
[1761055938670,0.4531,3928.8,3927.0,0.02546473]
[1761055938869,0.4531,3928.8,3926.8,0.02546602]
[1761055939188,0.4531,3928.8,3926.5,1.728]
[1761055939386,0.4531,3928.8,3926.6,0.74993249]
[1761055939680,0.4531,3928.8,3926.6,0.77539981]
[1761055939855,2.9984553,3928.8,3926.6,0.74993249]
[1761055940055,2.9984553,3928.8,3925.6,0.1583]
[1761055940237,0.4286,3928.7,3925.8,0.4723]
[1761055940444,0.4286,3928.7,3926.5,0.02546797]
[1761055940749,2.54564071,3928.3,3925.8,0.4723]
[1761055940948,0.4286,3928.7,3926.5,3.79146797]
[1761055941164,0.4286,3928.6,3926.6,0.40647929]
[1761055941337,0.4286,3928.6,3926.7,0.02546667]
[1761055941692,2.97403956,3928.6,3926.7,0.02546667]
[1761055941892,2.54556562,3928.4,3926.6,0.40647929]
[1761055942183,0.4286,3928.5,3926.6,0.40647929]
[1761055942353,0.2327,3928.9,3926.5,3.79146797]
[1761055942354,0.4286,3928.4,3926.7,0.41979473]
[1761055942738,0.2347,3928.3,3926.7,0.41979473]
[1761055942975,0.2347,3928.3,3926.8,0.02546602]
[1761055943230,0.2347,3928.3,3926.3,0.50688]
[1761055943231,2.54594003,3927.9,3925.3,2.21848466]
[1761055943338,0.2347,3926.8,3925.4,2.46684847]
[1761055943977,0.231,3925.5,3925.4,2.46684847]
[1761055944148,0.2347,3926.8,3925.4,2.245]
[1761055944351,0.2347,3928.3,3925.5,0.02547446]
[1761055944352,0.4497,3927.2,3925.5,0.02547446]
[1761055944554,0.4497,3927.2,3925.9,2.54716981]
[1761055944865,0.4497,3927.2,3925.5,0.02547446]
[1761055944866,0.4497,3927.2,3926.0,0.02547121]
[1761055945249,0.4497,3927.2,3925.5,0.02547446]
[1761055945468,0.4497,3927.2,3925.6,0.22724745]
[1761055945650,0.4497,3927.2,3925.7,0.02547316]
[1761055945855,0.2347,3928.3,3925.6,0.22724745]
[1761055946039,0.4497,3928.1,3926.3,2.54688031]
[1761055946241,0.4497,3928.1,3926.3,0.02546927]
[1761055946444,0.4497,3928.1,3926.0,0.02547121]
[1761055946686,0.4497,3928.1,3926.1,0.59720712]
[1761055946839,0.4497,3928.1,3926.1,0.62267768]
[1761055947043,0.4497,3928.1,3926.1,0.59720712]
[1761055947244,0.4497,3928.1,3926.1,0.62267768]
[1761055947474,0.4497,3928.1,3927.7,0.1272]
[1761055948295,0.1272,3927.9,3927.3,0.1272]
[1761055948701,0.4497,3927.8,3927.3,0.1272]
[1761055949102,2.54607414,3927.7,3927.3,0.1272]
[1761055949300,0.4497,3927.8,3927.3,0.1272]
[1761055949465,0.4497,3927.7,3926.8,3.751]
[1761055949666,0.231,3926.9,3926.1,0.59720712]
[1761055949868,0.231,3926.9,3925.3,0.002]
[1761055950074,0.231,3925.4,3925.3,0.002]
[1761055950516,0.4497,3925.8,3925.3,0.002]
[1761055953306,0.231,3926.9,3925.4,3.123]
[1761055953473,0.4497,3926.8,3925.5,0.02547446]
[1761055953672,0.4497,3926.8,3925.4,3.123]
[1761055953673,0.4497,3926.8,3925.6,0.56980401]
[1761055954482,0.4497,3926.8,3925.6,0.59527782]
[1761055954685,0.4497,3926.8,3925.6,0.56980401]
[1761055955002,0.4497,3927.5,3925.6,3.11714806]
[1761055955220,0.4497,3927.5,3925.7,0.02547316]
[1761055955505,0.4497,3927.5,3926.1,2.54700671]
[1761055955676,0.4497,3927.5,3925.8,0.54945865]
[1761055956073,0.4497,3927.5,3925.9,0.02547186]
[1761055956273,0.4497,3927.5,3925.5,1.91177446]
[1761055956498,0.4497,3927.5,3925.5,1.8863]
[1761055956804,0.4497,3927.5,3925.6,0.50113]
[1761055957006,0.4497,3927.5,3925.7,0.02547316]
[1761055957308,0.4497,3927.5,3925.7,1.75347316]
[1761055957608,0.4497,3928.0,3926.3,2.54691805]
[1761055957774,0.4497,3928.0,3926.4,0.02546862]
[1761055957974,0.4497,3928.0,3926.6,2.54673254]
[1761055958204,0.2347,3928.3,3926.7,0.88909986]
[1761055958406,0.2347,3928.3,3926.8,2.54660283]
[1761055958582,0.6844,3928.3,3926.5,6.31878767]
[1761055958774,0.6844,3928.3,3926.5,3.772]
[1761055959103,0.4497,3928.2,3926.5,3.772]
[1761055959703,0.5769,3928.2,3927.6,0.1272]
[1761055960077,0.4497,3928.1,3925.5,0.1583]
[1761055960310,0.1272,3927.9,3927.3,0.1272]
[1761055960524,2.54607458,3927.7,3925.7,3.766]
[1761055960807,0.4497,3928.0,3925.7,3.766]
[1761055960977,0.4497,3927.9,3925.8,0.02547251]
[1761055961588,2.54601363,3927.8,3925.7,3.766]
[1761055961909,0.4497,3927.9,3925.8,0.88350251]
[1761055962118,0.2347,3928.3,3927.1,2.54639977]
[1761055962278,0.4497,3928.6,3927.2,3.78646343]
[1761055962610,0.4497,3928.6,3927.2,3.761]
[1761055963201,0.4497,3928.6,3926.4,0.02546862]
[1761055963412,0.4497,3928.6,3926.5,4.50277245]
[1761055963600,2.99514152,3928.6,3926.6,0.79517725]
[1761055963799,0.4497,3928.6,3925.9,1.721]
[1761055964145,0.4497,3928.6,3926.0,2.344]
[1761055964146,0.4497,3928.5,3926.0,2.344]
[1761055964341,2.54556562,3928.4,3926.1,2.54705687]
[1761055964627,2.99520746,3928.5,3926.3,2.54691515]
[1761055964795,2.99531125,3928.4,3926.1,2.54704194]
[1761055965125,2.99531125,3928.4,3926.3,2.54692713]
[1761055965126,1.00377732,3928.4,3926.3,2.54692713]
[1761055965336,0.6807,3928.3,3926.5,2.54676013]
[1761055965538,0.6807,3928.3,3926.6,0.02546732]
[1761055965702,0.4497,3928.2,3926.3,2.54687169]
[1761055966018,0.4497,3928.2,3926.2,0.70776419]
[1761055966201,0.4497,3928.2,3926.0,2.54707373]
[1761055966539,2.99539996,3928.2,3926.1,3.749]
[1761055966842,2.54593525,3927.9,3925.8,0.39243]
[1761055966991,0.4497,3928.1,3925.9,3.748]
[1761055967194,0.4497,3928.2,3925.8,0.39243]
[1761055967424,0.4497,3928.2,3925.4,1.728]
[1761055967425,2.54612114,3927.6,3925.4,1.728]
[1761055967623,0.231,3928.3,3925.7,3.744]
[1761055967624,0.4497,3927.5,3925.7,3.744]
[1761055969026,0.4497,3927.5,3925.9,2.54717989]
[1761055969232,0.4497,3927.5,3925.8,3.737]
[1761055969401,0.4497,3927.5,3925.9,0.38953]
[1761055969796,0.4497,3927.5,3926.0,3.736]
[1761055970901,0.4497,3927.5,3925.9,0.38953]
[1761055970902,0.1272,3927.3,3926.6,0.1272]
[1761055971204,0.4497,3927.5,3925.3,0.002]
[1761055971205,11.80603878,3927.4,3925.3,0.002]
[1761055971411,1.22557388,3927.3,3925.3,0.002]
[1761055971614,0.4497,3927.3,3925.3,0.002]
[1761055971812,3.739,3928.0,3925.3,0.002]
[1761055971813,3.22710175,3927.2,3925.3,0.002]
[1761055972010,0.6807,3927.2,3925.3,0.002]
[1761055972229,0.231,3925.4,3925.3,0.002]
[1761055972608,0.6807,3925.4,3925.3,0.002]
[1761055973998,0.231,3925.4,3925.3,0.002]
[1761055974335,0.2368,3925.7,3925.3,0.002]
[1761055974719,0.4363,3926.8,3925.3,0.002]
[1761055974923,2.98291494,3926.8,3925.3,0.002]
[1761055975119,0.4363,3926.8,3925.3,0.002]
[1761055975297,0.4363,3926.7,3925.3,0.002]
[1761055975998,0.4363,3927.5,3925.3,0.4722]
[1761055976226,0.4363,3927.9,3926.1,2.5470402]
[1761055976424,0.4363,3927.9,3926.2,6.73346564]
[1761055976637,0.4363,3927.9,3926.2,6.70799155]
[1761055976820,0.4363,3927.9,3926.5,2.54678786]
[1761055977022,0.4363,3927.9,3926.6,0.02546732]
[1761055977534,0.4363,3927.9,3926.2,4.16100402]
[1761055977735,0.4363,3927.9,3926.3,0.67081183]
[1761055978603,0.231,3928.3,3926.4,0.4702]
[1761055978802,0.231,3928.3,3926.3,3.21767686]
[1761055978803,0.4363,3928.2,3926.3,0.67081183]
[1761055979614,0.4363,3928.2,3926.5,2.5467974]
[1761055979818,0.4363,3928.2,3926.6,0.02546732]
[1761055980028,0.4363,3928.2,3926.7,0.25722647]
[1761055980205,0.4363,3928.2,3926.3,1.14101183]
[1761055980403,0.4363,3928.2,3926.3,3.21772027]
[1761055980645,0.4363,3928.2,3926.4,0.49566862]
[1761055980854,4.336698,3929.6,3928.1,0.1583]
[1761055981174,0.2368,3930.6,3928.2,5.48345695]
[1761055981459,0.4363,3930.2,3929.7,0.1272]
[1761055982240,0.4393,3929.8,3929.7,0.1272]
[1761055982649,0.003,3929.8,3929.7,0.1272]
[1761055983436,0.003,3929.8,3929.5,3.743]
[1761055983638,0.003,3929.8,3929.6,3.741]
[1761055984206,0.2368,3929.7,3929.6,3.741]
[1761055984546,0.2368,3929.7,3928.5,3.737]
[1761055984719,0.4363,3929.6,3928.5,3.737]
[1761055985118,2.54769676,3929.8,3928.6,0.6285]
[1761055985119,0.003,3929.8,3928.6,0.6285]
[1761055985330,0.003,3929.8,3928.7,0.02545371]
[1761055985644,0.003,3929.8,3929.0,2.54515898]
[1761055985850,0.003,3929.8,3929.1,0.02545112]
[1761055986052,0.003,3929.8,3929.4,2.5449013]
[1761055986251,0.003,3929.8,3929.5,3.74]
[1761055986619,0.003,3929.8,3929.5,6.28484924]
[1761055986823,0.003,3929.8,3929.5,4.2102]
[1761055987142,0.003,3929.8,3929.5,3.74]
[1761055987344,0.003,3929.8,3929.6,0.62849821]
[1761055988859,0.2368,3929.7,3929.5,3.74]
[1761055989154,2.54478827,3929.6,3928.2,1.721]
[1761055989361,2.54478827,3929.6,3928.2,5.451]
[1761055989362,0.4363,3929.5,3928.2,5.451]
[1761055989918,0.003,3929.8,3928.3,0.4956563]
[1761055990155,0.003,3929.8,3928.4,0.50688]
[1761055990340,0.003,3929.8,3928.5,0.643508]
[1761055990660,0.003,3929.8,3928.9,2.54522338]
[1761055990855,0.003,3929.8,3929.0,3.732]
[1761055991351,0.2398,3929.8,3929.0,3.732]
[1761055991935,0.4363,3929.7,3929.0,3.732]
[1761055992159,0.4363,3929.7,3928.4,3.727]
[1761055992359,0.4363,3929.7,3928.5,3.727]
[1761055992524,0.4363,3929.7,3928.6,0.02545436]
[1761055993055,0.4363,3929.7,3928.5,3.727]
[1761055993388,0.4363,3929.7,3929.5,0.1272]
[1761055993587,0.4363,3929.7,3928.6,3.726]
[1761055993756,0.4363,3929.7,3929.2,0.1272]
[1761055994158,0.4363,3929.7,3929.5,0.1272]
[1761055995185,0.4363,3929.7,3928.6,3.726]
[1761055995186,2.54483756,3929.6,3928.6,3.726]
[1761055995361,1.01292937,3929.7,3929.1,0.1272]
[1761055995560,2.54490088,3929.5,3929.1,0.1272]
[1761055995973,0.4363,3929.4,3929.1,0.1272]
[1761055996386,2.98123798,3929.4,3929.1,0.1272]
[1761055996686,0.4363,3929.4,3928.8,0.1272]
[1761055996894,0.4363,3929.4,3926.9,0.1583]
[1761055996895,2.54509673,3929.2,3927.4,3.66]
[1761055997146,0.1272,3929.1,3928.5,0.1272]
[1761055997404,0.1272,3929.1,3927.4,3.66]
[1761055997405,2.54548284,3928.6,3927.4,3.66]
[1761055997695,0.1272,3928.5,3927.9,0.1272]
[1761055997903,0.6731,3928.5,3926.1,0.4702]
[1761055998055,0.6731,3928.5,3925.3,2.54956878]
[1761055998056,10.031282,3928.0,3927.2,0.1272]
[1761055998257,10.031282,3928.0,3925.3,0.002]
[1761055998258,2.59205018,3927.9,3925.4,0.4384]
[1761055998459,2.544541,3927.6,3925.5,0.02547446]
[1761055998653,2.544541,3927.6,3925.3,0.002]
[1761055998654,19.95035207,3927.3,3925.3,0.002]
[1761055998900,1.728,3927.2,3925.3,0.002]
[1761055999069,2.54648328,3927.0,3925.3,0.002]
[1761055999265,1.8507495,3927.0,3925.3,0.002]
[1761055999484,2.54673689,3926.6,3925.3,0.002]
[1761055999686,0.4749,3926.9,3925.3,0.002]
[1761055999890,0.4749,3926.9,3925.4,0.02547511]
[1761056000517,3.02112519,3927.4,3925.5,0.4384]
[1761056000677,2.84839114,3927.3,3925.5,0.4384]
[1761056000876,2.54635626,3927.2,3925.3,0.002]
[1761056001080,3.02125626,3927.2,3925.3,0.002]
[1761056001281,0.4749,3927.1,3925.3,0.002]
[1761056001490,1.728,3927.6,3925.3,0.002]
[1761056001491,0.39936185,3928.3,3925.4,0.4384]
[1761056001673,0.4749,3929.1,3926.1,2.611399]
[1761056001989,0.39927185,3929.0,3926.4,1.728]
[1761056002304,0.4749,3929.1,3927.1,2.54634364]
[1761056002478,0.4749,3929.1,3927.2,0.46386343]
[1761056002665,0.4749,3929.1,3927.3,3.718]
[1761056002865,0.4749,3929.1,3927.5,2.54614894]
[1761056003067,0.4749,3929.7,3927.4,2.61004847]
[1761056003373,0.2398,3929.8,3927.4,2.61004847]
[1761056003589,0.003,3929.8,3927.5,0.4638]
[1761056003906,0.003,3929.8,3928.3,2.54558693]
[1761056004117,0.003,3929.8,3928.4,3.97055869]
[1761056004404,0.231,3929.7,3928.4,3.97055869]
[1761056004714,0.231,3929.7,3928.4,3.716]
[1761056004715,3.23153195,3929.7,3928.4,3.716]
[1761056004915,0.4558,3929.6,3928.4,3.716]
[1761056005689,0.4558,3929.6,3928.5,0.183755]
[1761056005999,0.231,3929.7,3928.5,0.1583]
[1761056006226,0.6868,3929.7,3928.5,0.1583]
[1761056006514,0.6868,3929.7,3928.4,3.716]
[1761056006714,0.231,3929.7,3928.4,3.716]
[1761056006916,0.003,3929.8,3928.5,0.489255]
[1761056007334,0.003,3929.8,3928.5,0.4638]
[1761056007684,0.003,3929.8,3928.4,3.718]
[1761056007885,0.231,3929.7,3928.4,3.718]
[1761056008090,0.231,3929.7,3928.9,0.1272]
[1761056008091,0.1272,3929.6,3928.9,0.1272]
[1761056008286,2.54485303,3929.5,3928.9,0.1272]
[1761056008541,0.583,3929.6,3928.9,0.1272]
[1761056008728,2.54524287,3928.9,3928.4,0.002]
[1761056008891,0.4558,3929.5,3928.7,0.1272]
[1761056008892,2.54518162,3929.0,3928.7,0.1272]
[1761056009092,0.50902393,3929.0,3928.7,0.1272]
[1761056009389,0.583,3929.4,3928.7,0.1272]
[1761056009390,0.4558,3928.9,3928.7,0.1272]
[1761056009590,2.54530645,3928.8,3928.4,0.002]
[1761056009789,2.54530645,3928.8,3928.5,0.1272]
[1761056009986,0.4558,3928.7,3928.5,0.1272]
[1761056010195,0.4558,3928.7,3928.4,0.002]
[1761056010397,0.4558,3929.3,3928.4,0.002]
[1761056010788,0.231,3929.7,3928.4,0.002]
[1761056011592,0.6868,3929.7,3928.4,0.002]
[1761056011793,0.231,3929.7,3928.4,0.002]
[1761056012739,0.6868,3929.7,3928.4,0.002]
[1761056013054,1.01064785,3929.7,3928.4,0.002]
[1761056013351,0.4558,3929.6,3928.4,0.002]
[1761056014045,0.231,3928.5,3928.4,0.002]
[1761056014456,2.54490257,3929.5,3928.4,0.002]
[1761056014631,0.231,3929.7,3928.5,0.025455]
[1761056014814,0.003,3929.8,3928.5,0.025455]
[1761056014815,0.003,3929.8,3928.5,3.00929527]
[1761056015014,0.003,3929.8,3928.6,0.30112953]
[1761056015354,0.003,3929.8,3928.7,4.3181]
[1761056015847,0.003,3929.8,3929.0,2.54511276]
[1761056016145,0.003,3929.8,3928.8,0.4638]
[1761056016335,0.003,3929.8,3928.8,3.00909016]
[1761056016537,0.003,3929.8,3928.9,3.26168762]
[1761056016751,0.003,3929.8,3928.9,0.71645197]
[1761056016925,0.003,3929.8,3928.9,1.18025197]
[1761056017251,0.003,3929.8,3928.9,0.71645197]
[1761056017449,0.234,3929.8,3928.9,0.71645197]
[1761056017752,0.234,3929.8,3929.0,3.688]
[1761056018450,0.6898,3929.8,3928.4,0.002]
[1761056018758,0.231,3928.5,3928.4,0.002]
[1761056019352,0.6868,3928.5,3928.4,0.002]
[1761056019717,0.231,3928.5,3928.4,0.002]
[1761056019919,0.6868,3928.5,3928.4,0.002]
[1761056020139,3.23230082,3928.5,3928.4,0.002]
[1761056020340,3.82278866,3928.5,3928.4,0.002]
[1761056020731,3.82278866,3928.5,3926.5,1.72]
[1761056020732,1.27728784,3928.5,3926.5,1.72]
[1761056021049,0.1272,3928.1,3927.3,0.1272]
[1761056021226,0.4558,3928.4,3926.6,1.998]
[1761056021426,2.54602393,3927.7,3926.6,1.998]
[1761056021849,0.4558,3927.7,3926.6,1.998]
[1761056022552,0.4558,3928.4,3926.7,0.02546667]
[1761056022749,0.4558,3928.4,3926.7,0.48926667]
[1761056023053,0.4558,3928.4,3926.8,0.24872667]
[1761056023251,0.4558,3928.4,3926.9,0.02546537]
[1761056023460,0.4558,3928.4,3926.9,3.674]
[1761056025055,3.00137178,3928.4,3926.9,3.674]
[1761056025417,2.54571088,3928.2,3926.9,3.674]
[1761056025819,0.4558,3928.1,3926.9,3.674]
[1761056026145,0.231,3927.0,3924.6,0.6221]
[1761056026350,0.231,3927.0,3925.2,0.569]
[1761056026526,2.54698855,3926.3,3925.2,0.569]
[1761056026731,0.25469886,3926.2,3925.4,1.109]
[1761056027062,4.27473254,3926.6,3926.5,0.002]
[1761056027266,3.00253254,3926.6,3926.5,0.002]
[1761056027653,3.50941254,3926.6,3926.5,0.002]
[1761056027839,3.78093442,3926.6,3926.5,0.002]
[1761056028041,0.231,3927.0,3926.5,0.002]
[1761056028241,0.4558,3926.9,3926.5,0.002]
[1761056028450,2.54673254,3926.6,3926.5,0.002]
[1761056028856,3.00253254,3926.6,3926.5,0.002]
[1761056029156,0.231,3927.0,3926.5,0.002]
[1761056029467,0.4558,3926.9,3926.5,0.002]
[1761056030072,0.231,3927.0,3926.5,0.002]
[1761056030568,0.231,3927.6,3926.5,0.002]
[1761056030866,0.281,3931.2,3926.6,3.3808]
[1761056030867,0.4558,3928.6,3926.6,3.3808]
[1761056031070,0.4558,3928.6,3926.7,0.33828]
[1761056031243,0.4558,3928.4,3926.5,3.623]
[1761056031629,0.4558,3928.4,3926.6,0.02546732]
[1761056031830,0.4558,3928.4,3926.7,0.173]
[1761056032128,2.54570582,3928.2,3926.7,0.173]
[1761056032335,3.00156763,3928.1,3926.7,0.173]
[1761056032655,0.4558,3928.1,3926.5,0.002]
[1761056032843,0.4558,3928.1,3926.5,0.49126797]
[1761056033166,0.231,3928.5,3926.5,3.01257081]
[1761056033368,16.33915589,3928.1,3926.5,0.002]
[1761056033555,1.63391559,3928.0,3926.5,0.002]
[1761056033765,0.4609,3928.1,3926.5,0.002]
[1761056034078,3.00666931,3928.1,3926.5,0.002]
[1761056034232,0.4609,3928.1,3926.5,0.002]
[1761056034780,2.54575319,3928.2,3926.6,1.72]
[1761056034992,1.728,3929.2,3926.6,1.72]
[1761056034993,0.4639,3929.9,3928.0,0.1603]
[1761056035272,0.003,3929.8,3928.1,4.1514576]
[1761056035446,0.003,3929.8,3928.3,2.54560924]
[1761056035645,0.003,3929.8,3928.4,2.54555188]
[1761056035859,0.003,3929.8,3927.7,2.54601757]
[1761056035860,0.6794,3929.7,3927.4,0.1603]
[1761056036160,0.6794,3929.7,3927.5,0.02546148]
[1761056036334,0.6794,3929.7,3927.6,0.38767615]
[1761056036531,0.6794,3929.7,3927.7,0.02546019]
[1761056036857,0.6794,3929.7,3927.8,3.694]
[1761056036858,0.4609,3929.6,3927.8,3.694]
[1761056037059,0.4609,3929.6,3927.9,3.693]
[1761056037368,2.5450815,3929.2,3927.9,3.693]
[1761056037782,2.54496595,3929.4,3927.9,3.693]
[1761056038066,2.54512467,3929.1,3927.9,3.693]
[1761056038362,2.54496595,3929.4,3927.9,3.693]
[1761056038571,2.54505585,3929.2,3927.9,3.693]
[1761056038790,2.54505585,3929.2,3927.6,0.47546084]
[1761056038791,0.2185,3928.0,3927.6,0.02546084]
[1761056038935,0.2185,3928.0,3926.7,3.686]
[1761056039742,0.2185,3928.0,3926.5,0.452]
[1761056040172,0.2185,3928.0,3926.6,3.195]
[1761056040541,0.6794,3928.0,3926.7,3.69]
[1761056040786,0.3225144,3927.9,3926.5,0.002]
[1761056041088,0.2185,3926.6,3926.5,0.002]
[1761056041440,2.76437804,3928.0,3926.5,0.002]
[1761056041441,0.4609,3927.7,3926.5,0.002]
[1761056041640,0.4609,3927.7,3926.6,3.687]
[1761056041849,0.2185,3928.0,3926.6,3.687]
[1761056042055,0.2185,3928.0,3926.7,0.3689]
[1761056042576,0.2185,3928.4,3926.8,0.02546602]
[1761056042734,0.4609,3928.7,3926.8,0.02546602]
[1761056042939,2.54531412,3928.8,3926.9,0.45]
[1761056043164,2.54536113,3928.8,3926.9,0.45]
[1761056043349,2.54537697,3928.7,3926.9,0.45]
[1761056043550,2.54537697,3928.7,3927.0,3.686]
[1761056043750,2.79988951,3928.8,3927.0,3.686]
[1761056043973,0.25453611,3928.8,3927.1,0.47546408]
[1761056044278,3.00595082,3929.2,3927.1,3.02181919]
[1761056044572,0.4609,3929.2,3927.2,0.45]
[1761056044875,2.54517688,3929.0,3927.2,0.45]
[1761056045075,2.763227,3929.7,3927.3,0.43906278]
[1761056045076,0.2185,3929.7,3927.3,0.43906278]
[1761056045441,2.5448533,3929.5,3927.4,3.15646609]
[1761056045642,2.54491833,3929.4,3927.5,0.45]
[1761056045842,0.4609,3929.5,3927.5,2.99614099]
[1761056046062,0.4609,3929.5,3927.6,5.396]
[1761056046265,0.4609,3929.5,3927.7,0.60063]
[1761056046578,2.54525589,3928.9,3927.4,0.1603]
[1761056046782,0.4609,3929.5,3927.4,0.1603]
[1761056046943,0.50688,3929.3,3926.5,0.452]
[1761056047280,0.4609,3929.2,3926.5,0.452]
[1761056047480,2.54511211,3929.1,3926.6,1.563]
[1761056047684,2.54563116,3928.3,3926.7,0.3735]
[1761056047871,0.001,3928.5,3926.6,1.563]
[1761056047872,0.001,3928.5,3926.6,0.002]
[1761056048189,0.2185,3926.7,3926.6,0.002]
[1761056048403,2.76516768,3926.7,3926.6,0.002]
[1761056048545,3.22606768,3926.7,3926.6,0.002]
[1761056049246,0.6794,3926.7,3926.6,0.002]
[1761056049877,2.94539328,3927.7,3926.6,0.002]
[1761056049878,0.2185,3927.1,3926.6,0.002]
[1761056050397,3.00677921,3928.0,3926.6,0.603]
[1761056050556,0.4609,3928.0,3926.6,0.603]
[1761056050757,0.4609,3927.9,3926.6,0.002]
[1761056050952,3.00680593,3927.9,3926.7,1.128]
[1761056051156,0.4609,3927.9,3926.7,1.128]
[1761056051356,0.4609,3927.9,3927.5,0.1272]
[1761056051587,3.00679521,3927.9,3927.5,0.1272]
[1761056051798,2.67296532,3928.1,3927.5,0.1272]
[1761056051799,0.56797605,3927.8,3927.5,0.1272]
[1761056051952,0.56797605,3927.8,3926.8,1.249]
[1761056051953,0.4609,3927.8,3926.8,1.249]
[1761056052355,2.54609581,3927.6,3926.6,0.002]
[1761056052586,3.00686694,3927.8,3926.6,3.67]
[1761056052790,0.2185,3926.7,3926.6,0.002]
[1761056053159,0.6794,3926.7,3926.6,0.002]
[1761056053363,3.22606768,3926.7,3926.6,0.002]
[1761056053664,0.79576493,3926.7,3926.6,0.002]
[1761056053859,2.76497899,3927.0,3926.6,0.002]
[1761056054060,2.54653798,3926.9,3926.6,0.002]
[1761056054395,2.54666768,3926.7,3926.6,0.002]
[1761056054699,0.4609,3926.8,3926.6,0.002]
[1761056055005,0.2185,3927.0,3926.6,0.002]
[1761056055564,0.6794,3927.0,3926.6,0.002]
[1761056055879,3.00679453,3927.9,3926.6,0.002]
[1761056056187,0.2185,3927.5,3926.6,0.002]
[1761056056486,0.6794,3927.5,3926.6,0.002]
[1761056056988,0.4609,3927.4,3926.6,0.002]
[1761056057312,2.76471034,3927.5,3926.6,0.002]
[1761056057313,0.32256103,3927.3,3926.6,0.002]
[1761056057613,0.2185,3927.4,3926.6,0.002]
[1761056057979,0.6794,3927.4,3926.6,0.002]
[1761056058288,3.22567046,3927.4,3926.6,0.002]
[1761056058515,0.2185,3927.4,3926.6,0.002]
[1761056058694,0.4333,3927.3,3926.6,0.002]
[1761056059010,0.2185,3927.4,3926.6,0.002]
[1761056060606,2.54627861,3927.3,3926.6,0.002]
[1761056060786,0.6518,3927.4,3926.6,0.002]
[1761056060787,0.57442308,3927.2,3926.6,0.002]
[1761056060985,0.6518,3927.4,3926.6,0.002]
[1761056061408,3.1980196,3927.4,3926.6,0.002]
[1761056061707,3.19802192,3927.4,3926.6,0.002]
[1761056061914,3.19802192,3927.4,3926.9,0.1272]
[1761056062085,1.23892438,3927.4,3926.9,0.1272]
[1761056062782,0.4333,3927.3,3926.9,0.1272]
[1761056063312,0.2185,3927.4,3926.9,0.1272]
[1761056063815,2.54581141,3928.1,3926.6,0.002]
[1761056063816,0.444,3928.2,3926.6,0.002]
[1761056064180,2.98971789,3928.2,3926.6,0.002]
[1761056064508,0.444,3928.1,3926.6,0.002]
[1761056064714,0.001,3928.5,3926.9,2.54653798]
[1761056064920,0.001,3928.5,3927.2,2.54632797]
[1761056065121,0.001,3928.5,3927.3,0.02546278]
[1761056065321,0.001,3928.5,3927.4,2.54621377]
[1761056065618,0.001,3928.5,3927.5,3.645]
[1761056065822,0.001,3928.5,3927.0,0.32732047]
[1761056065997,0.001,3928.5,3927.4,2.54615348]
[1761056066329,0.001,3928.5,3928.4,0.1603]
[1761056066704,0.001,3928.5,3928.0,0.1603]
[1761056067104,0.001,3928.5,3928.1,3.641]
[1761056067417,0.001,3928.5,3928.1,3.6664576]
[1761056067594,0.001,3928.5,3928.2,1.12796974]
[1761056068124,0.001,3928.5,3928.3,0.4461]
[1761056068503,0.001,3928.5,3928.4,2.57102127]
[1761056068704,0.001,3928.5,3928.4,2.99166562]
[1761056069296,0.001,3928.5,3928.4,0.4461]
[1761056069594,0.001,3928.5,3928.4,4.0791]
[1761056070005,0.001,3928.5,3928.4,0.85401]
[1761056070228,0.001,3928.5,3928.4,4.48801]
[1761056070432,0.001,3928.5,3928.4,0.85401]
[1761056070728,0.001,3928.5,3928.4,3.636]
[1761056071140,0.001,3928.5,3927.7,0.1603]
[1761056071300,0.001,3928.5,3927.8,3.637]
[1761056071902,0.001,3928.5,3927.7,0.1603]
[1761056072103,0.001,3928.5,3927.8,3.635]
[1761056072631,0.001,3928.5,3927.6,0.1603]
[1761056072851,0.001,3928.5,3927.7,3.65846019]
[1761056073029,0.001,3928.5,3927.7,3.633]
[1761056073929,0.001,3928.5,3928.4,0.1272]
[1761056076506,0.001,3928.5,3928.4,3.7542]
[1761056076706,0.001,3928.5,3928.4,3.627]
[1761056076907,0.001,3928.5,3928.4,6.99408562]
[1761056077258,0.04087055,3928.5,3928.4,6.99408562]
[1761056077756,0.04087055,3928.5,3928.4,8.72208562]
[1761056077960,0.04087055,3928.5,3928.4,9.22896562]
[1761056078237,0.04087055,3928.5,3928.4,5.60196562]
[1761056078452,0.04087055,3928.5,3928.4,10.94196562]
[1761056079006,0.003,3929.8,3929.0,2.54513144]
[1761056079211,0.003,3929.8,3928.9,0.1583]
[1761056079538,0.003,3929.8,3929.0,3.64445176]
[1761056079908,2.77073441,3931.4,3929.0,3.64445176]
[1761056079909,0.39906027,3932.2,3929.3,30.0]